bitfinex/quotes_ETHUSD_20250804
["timestamp","ask_amount","ask_price","bid_price","bid_amount"]
[1754302749018,5.1573,3563.4,3563.1,6.66806241]
[1754302749220,0.4558,3563.2,3563.1,3.0]
[1754302749814,0.9003,3563.2,3563.1,3.0]
[1754302751619,0.14,3563.3,3563.1,3.0]
[1754302751785,0.14,3563.3,3563.2,2.80646609]
[1754302752215,0.14,3563.3,3563.1,5.8064971]
[1754302752731,0.14,3563.3,3563.1,3.0]
[1754302753021,4.397,3563.4,3563.1,3.0]
[1754302753231,0.4558,3563.3,3563.1,3.0]
[1754302753439,0.9003,3563.2,3563.1,3.0]
[1754302755047,1.41613,3563.2,3563.0,0.002]
[1754302755214,4.257,3563.1,3563.0,0.002]
[1754302755414,5.1573,3563.1,3563.0,0.002]
[1754302761709,8.54892667,3563.1,3563.0,0.002]
[1754302761931,8.51384486,3563.1,3563.0,0.002]
[1754302762130,11.1707761,3563.1,3563.0,0.002]
[1754302763768,6.31585996,3562.7,3562.6,0.002]
[1754302763967,22.34703774,3562.7,3562.6,0.002]
[1754302764176,23.24733774,3562.7,3562.6,0.002]
[1754302765068,20.28833774,3562.7,3562.6,0.002]
[1754302765269,23.15658481,3562.7,3562.6,0.002]
[1754302773314,25.57511527,3562.7,3562.6,0.002]
[1754302776516,27.26211527,3562.7,3562.6,0.002]
[1754302779276,25.58311527,3562.7,3562.6,0.002]
[1754302782140,32.63311527,3562.7,3562.6,0.002]
[1754302790282,64.32011527,3562.7,3562.6,0.002]
[1754302791289,38.04433275,3562.1,3562.0,0.002]
[1754302791473,17.99182581,3561.7,3560.8,0.4691]
[1754302791690,54.07682581,3561.7,3560.6,0.4482]
[1754302791895,56.63879289,3561.7,3560.6,0.9173]
[1754302792089,60.50609289,3561.7,3560.2,0.4482]
[1754302792291,35.04480569,3561.5,3560.2,0.68144346]
[1754302792493,6.35812108,3561.1,3560.3,0.4691]
[1754302792694,29.13909886,3561.1,3560.3,0.4691]
[1754302792903,32.50378046,3561.1,3560.3,0.4691]
[1754302794309,32.50378046,3561.1,3560.5,0.4691]
[1754302794707,32.50378046,3561.1,3560.3,0.4482]
[1754302794897,32.50378046,3561.1,3560.6,0.4691]
[1754302796387,35.46278046,3561.1,3560.6,0.4691]
[1754302797024,15.8541816,3561.1,3560.1,0.21507182]
[1754302797171,12.3451816,3561.1,3561.0,0.938]
[1754302797376,16.6031816,3561.1,3561.0,0.938]
[1754302797576,17.1531816,3561.1,3561.0,0.938]
[1754302797810,14.1531816,3561.1,3561.0,0.938]
[1754302798611,13.6031816,3561.1,3561.0,0.938]
[1754302799613,9.3451816,3561.1,3561.0,0.938]
[1754302799812,13.6031816,3561.1,3561.0,0.938]
[1754302800510,13.6031816,3561.1,3561.0,0.4695]
[1754302800678,14.1531816,3561.1,3561.0,0.4695]
[1754302801195,14.1531816,3561.1,3561.0,0.938]
[1754302805489,13.6031816,3561.1,3561.0,0.938]
[1754302806027,9.3451816,3561.1,3561.0,0.938]
[1754302806189,13.6031816,3561.1,3561.0,0.938]
[1754302807232,13.6031816,3561.1,3561.0,3.74619994]
[1754302807437,13.6031816,3561.1,3561.0,0.938]
[1754302807819,13.6031816,3561.1,3561.0,4.40166685]
[1754302807820,9.2043816,3561.1,3561.0,4.40166685]
[1754302807996,13.4623816,3561.1,3561.0,4.40166685]
[1754302808192,2.4563816,3561.1,3561.0,4.40166685]
[1754302808397,6.7143816,3561.1,3561.0,4.40166685]
[1754302808630,6.7143816,3561.1,3561.0,7.40166685]
[1754302808827,2.4563816,3561.1,3561.0,7.54246685]
[1754302811251,4.258,3561.9,3561.8,5.8075692]
[1754302811397,6.75,3562.5,3562.4,2.80709633]
[1754302811597,11.148,3562.5,3562.4,2.80709633]
[1754302811802,11.008,3562.5,3562.4,3.74309633]
[1754302813906,11.008,3562.5,3562.4,0.936]
[1754302814258,11.008,3562.5,3562.4,0.68313245]
[1754302817824,11.008,3562.5,3562.4,0.21563245]
[1754302818023,11.008,3562.5,3562.3,2.80716319]
[1754302818224,11.008,3562.5,3562.4,3.27459633]
[1754302818432,11.008,3562.5,3562.4,3.74309633]
[1754302818758,11.008,3562.5,3562.4,1.14404495]
[1754302819070,11.008,3562.5,3562.4,3.48264128]
[1754302819208,11.008,3562.5,3562.4,3.95114128]
[1754302819608,11.008,3562.5,3562.4,15.95057454]
[1754302819849,4.256,3562.5,3562.4,18.95057454]
[1754302820164,4.256,3562.5,3562.4,19.09057454]
[1754302820859,0.141,3563.0,3562.8,2.80678118]
[1754302821058,4.256,3562.9,3562.8,2.80678118]
[1754302821409,4.256,3562.9,3562.8,3.74278118]
[1754302822214,0.141,3563.0,3562.9,2.8067024]
[1754302822414,4.397,3563.0,3562.9,3.7427024]
[1754302822918,4.257,3563.0,3562.9,3.7427024]
[1754302823672,0.001,3563.0,3562.9,2.8067024]
[1754302823969,4.257,3563.0,3562.9,2.8067024]
[1754302824734,4.257,3563.0,3562.9,3.2742024]
[1754302824933,4.257,3563.0,3562.9,3.85015474]
[1754302827649,4.257,3563.0,3562.9,0.57595234]
[1754302827821,4.7115,3563.0,3562.9,0.57595234]
[1754302828017,5.1843,3563.0,3562.6,2.80692734]
[1754302828242,4.257,3563.0,3562.9,2.8067024]
[1754302828661,4.257,3563.0,3562.9,3.2870024]
[1754302829439,4.257,3563.0,3562.8,2.94675677]
[1754302829886,4.257,3563.0,3562.9,2.8067024]
[1754302831457,4.257,3563.0,3562.9,3.95548859]
[1754302831656,4.257,3563.0,3562.9,4.40648859]
[1754302831888,4.256,3563.0,3562.9,3.95548859]
[1754302832094,4.256,3563.0,3562.9,4.40648859]
[1754302832255,0.001,3563.0,3562.9,4.40648859]
[1754302832463,4.256,3563.0,3562.9,4.40648859]
[1754302833038,0.001,3563.0,3562.9,4.40648859]
[1754302833201,4.256,3563.0,3562.9,4.40648859]
[1754302833841,0.001,3563.0,3562.9,6.95548859]
[1754302834063,0.001,3563.0,3562.9,7.54648859]
[1754302834258,0.001,3563.9,3563.8,2.8059936]
[1754302834468,0.001,3563.9,3563.8,7.29850118]
[1754302835093,0.001,3563.9,3563.8,8.14162918]
[1754302835259,0.001,3563.9,3563.8,8.28162918]
[1754302835842,1e-08,3563.9,3563.8,8.28162918]
[1754302844511,1e-08,3563.9,3563.8,7.83062918]
[1754302845031,1e-08,3563.9,3563.8,8.28162918]
[1754302847314,1e-08,3563.9,3563.8,7.35032918]
[1754302847516,1e-08,3563.9,3563.8,11.60632918]
[1754302847712,1e-08,3563.9,3563.8,12.08662918]
[1754302850244,1e-08,3563.9,3563.8,12.08562918]
[1754302851605,1e-08,3563.9,3563.8,12.53662918]
[1754302853805,1e-08,3563.9,3563.8,12.08562918]
[1754302856946,1e-08,3563.9,3563.8,11.60532918]
[1754302858550,1e-08,3563.9,3563.8,12.09142918]
[1754302859411,1e-08,3563.9,3563.8,12.09342918]
[1754302862147,1e-08,3563.9,3563.8,11.25030118]
[1754302864067,1e-08,3563.9,3563.8,10.76420118]
[1754302865079,0.94800001,3563.9,3563.8,10.76420118]
[1754302865656,1e-08,3563.9,3563.8,10.76420118]
[1754302867812,0.001,3564.2,3564.1,2.80575741]
[1754302868015,0.001,3564.2,3564.1,5.82621814]
[1754302868197,0.001,3564.2,3564.1,6.43185741]
[1754302868376,0.4938,3564.2,3564.1,5.94575741]
[1754302868579,0.949,3564.2,3564.1,5.94575741]
[1754302868812,0.001,3564.2,3564.1,6.6142436]
[1754302871112,0.001,3564.2,3564.1,7.1003436]
[1754302871614,0.001,3564.2,3564.1,6.6142436]
[1754302872115,0.001,3564.2,3564.1,7.1003436]
[1754302872608,0.001,3564.3,3564.2,5.80567869]
[1754302872815,3.0,3566.7,3564.4,2.80552126]
[1754302872816,5.80375798,3566.7,3564.4,2.80552126]
[1754302873016,5.80375798,3566.7,3565.5,2.8046278]
[1754302873017,4.392,3565.9,3565.5,2.8046278]
[1754302873177,4.252,3565.9,3565.4,0.14]
[1754302873379,0.4552,3565.8,3565.7,2.80449841]
[1754302873684,0.948,3565.8,3565.7,2.96492767]
[1754302873889,0.948,3565.8,3565.7,2.94449841]
[1754302874186,0.948,3565.8,3565.7,2.80449841]
[1754302874405,0.948,3565.8,3565.7,2.94449841]
[1754302875093,0.948,3565.8,3565.7,5.94449841]
[1754302875896,0.14,3566.6,3565.7,5.94449841]
[1754302875897,0.14,3566.6,3566.2,2.80403948]
[1754302876083,4.392,3566.8,3566.1,11.63417778]
[1754302876279,0.4928,3566.7,3566.4,2.80389634]
[1754302876503,0.4552,3566.6,3566.4,2.80389634]
[1754302876716,0.4928,3566.5,3566.3,2.94399459]
[1754302877216,6.741,3567.1,3566.3,2.94399459]
[1754302877217,0.948,3566.4,3566.3,0.14]
[1754302877603,0.948,3566.4,3566.3,2.94402658]
[1754302877802,0.4928,3566.8,3566.3,12.34899836]
[1754302878014,0.4552,3566.7,3566.6,2.80379072]
[1754302878270,0.948,3566.7,3566.6,2.80379072]
[1754302878553,0.948,3566.7,3566.6,2.94379072]
[1754302878750,0.4928,3566.7,3566.6,5.94379072]
[1754302878948,0.948,3566.7,3566.6,5.94379072]
[1754302880026,1.00065658,3567.0,3566.9,2.8035549]
[1754302880650,1.03825658,3567.0,3566.9,2.9435549]
[1754302881150,1.49345658,3567.0,3566.9,0.14]
[1754302882450,1.49345658,3567.0,3566.9,2.9435549]
[1754302882756,1.49345658,3567.0,3566.9,0.14]
[1754302882959,1.49345658,3567.0,3566.9,2.9435549]
[1754302883143,1.49345658,3567.0,3566.9,0.14]
[1754302883740,2.06810224,3567.0,3566.9,0.14]
[1754302884149,2.06810224,3567.0,3566.0,2.80424853]
[1754302884322,0.14,3566.8,3566.3,0.14]
[1754302884523,4.251,3566.7,3566.3,0.14]
[1754302884723,0.948,3566.6,3566.3,0.14]
[1754302885336,0.948,3566.5,3566.3,0.14]
[1754302885768,4.251,3566.7,3566.3,0.14]
[1754302885973,0.948,3566.4,3566.3,0.14]
[1754302892741,5.198,3566.4,3566.3,0.14]
[1754302899094,0.14,3566.8,3566.3,0.14]
[1754302899293,0.4764,3566.6,3566.3,0.14]
[1754302899665,0.9396,3566.6,3566.3,0.14]
[1754302899992,0.14,3566.9,3566.5,3.0]
[1754302900293,1.48505658,3567.0,3566.5,3.0]
[1754302900294,4.25,3566.8,3566.7,2.80371211]
[1754302900592,4.25,3566.8,3566.6,2.80376605]
[1754302900802,4.7264,3566.8,3566.6,2.80376605]
[1754302901007,5.1896,3566.8,3566.6,2.80376605]
[1754302901909,0.4764,3566.7,3566.6,2.80376605]
[1754302902111,4.25,3566.8,3566.7,2.80371211]
[1754302902605,0.54545658,3567.0,3566.9,2.8035549]
[1754302902824,0.54545658,3567.0,3566.9,14.43773268]
[1754302902825,4.79545658,3567.0,3566.9,14.43773268]
[1754302903123,0.54545658,3567.0,3566.9,18.06103268]
[1754302903323,0.54545658,3567.0,3566.9,18.62224026]
[1754302903479,0.54545658,3567.0,3566.9,19.05994026]
[1754302904301,0.54545658,3567.0,3566.9,19.60994026]
[1754302909524,0.54545658,3567.0,3566.9,19.17224026]
[1754302909736,0.54545658,3567.0,3566.9,23.42124026]
[1754302910455,0.54545658,3567.0,3566.9,23.85894026]
[1754302913340,0.54545658,3567.0,3566.9,23.42124026]
[1754302914048,0.54545658,3567.0,3566.9,23.85894026]
[1754302914638,0.54545658,3567.0,3566.9,23.96669626]
[1754302914825,1e-08,3567.0,3566.9,24.40439626]
[1754302916621,1e-08,3567.2,3567.1,6.35339771]
[1754302916842,0.4764,3568.0,3567.9,5.80276913]
[1754302917027,0.4764,3568.0,3567.9,17.43694691]
[1754302917330,0.4764,3568.0,3567.9,17.57694691]
[1754302917626,0.9511,3568.0,3567.9,5.94276913]
[1754302918420,0.9511,3568.0,3567.9,3.14]
[1754302920250,0.9511,3568.0,3567.9,3.34972341]
[1754302920454,0.9511,3568.0,3567.9,0.34972341]
[1754302920677,3.75379058,3568.0,3567.9,0.34972341]
[1754302920983,3.75379058,3568.0,3566.5,3.64615409]
[1754302920984,4.12916964,3568.0,3566.5,3.64615409]
[1754302921273,0.14,3567.2,3566.7,0.14]
[1754302921634,0.14,3567.2,3566.7,0.34848881]
[1754302921635,0.9643,3567.1,3566.7,0.34848881]
[1754302921945,0.9643,3567.0,3566.6,2.80371725]
[1754302922151,0.9643,3567.0,3566.0,4.248]
[1754302922152,0.9643,3566.9,3566.7,0.20648897]
[1754302922322,0.9643,3566.9,3566.6,0.14]
[1754302922523,0.9643,3566.8,3566.6,0.35489433]
[1754302922719,0.9643,3566.7,3566.6,0.14]
[1754302922926,0.9643,3566.7,3566.6,17.5779685]
[1754302923127,0.4896,3566.7,3566.6,17.5779685]
[1754302923430,0.9643,3566.7,3566.6,17.5779685]
[1754302923758,0.14,3567.2,3566.8,2.80357185]
[1754302924053,4.25,3567.3,3566.6,17.79107345]
[1754302924054,0.4896,3566.9,3566.7,2.80368542]
[1754302924262,0.9643,3566.8,3566.6,3.21310495]
[1754302924457,0.4747,3567.0,3566.7,0.14]
[1754302924658,4.25,3567.4,3566.7,0.14]
[1754302924659,0.9643,3566.9,3566.7,0.14]
[1754302925038,0.9643,3566.8,3566.7,0.14]
[1754302925234,0.9643,3566.8,3566.7,2.94371211]
[1754302926227,0.9643,3566.8,3566.7,0.14]
[1754302926828,0.9643,3566.8,3566.7,2.94371211]
[1754302927048,0.9643,3566.8,3566.7,0.14]
[1754302927544,0.9643,3567.1,3566.7,0.14]
[1754302927750,0.9643,3567.0,3566.8,2.80357664]
[1754302927968,4.39,3567.4,3566.9,2.8035549]
[1754302928170,4.39,3567.4,3566.9,2.9435549]
[1754302928466,4.39,3567.4,3567.1,2.80339767]
[1754302928634,0.9643,3567.3,3566.9,0.14]
[1754302928834,0.9643,3567.3,3566.9,2.94353461]
[1754302929034,0.9643,3567.2,3567.0,2.80347629]
[1754302929276,0.9643,3567.2,3567.1,2.80339771]
[1754302929472,4.39,3567.4,3567.1,2.80339771]
[1754302929929,0.9643,3567.3,3567.0,2.80345854]
[1754302930128,0.4896,3567.2,3567.0,2.80345854]
[1754302930347,0.9643,3567.2,3567.0,2.80345854]
[1754302930547,0.4747,3567.1,3567.0,2.80345854]
[1754302930742,0.9643,3567.1,3567.0,2.80345854]
[1754302931872,0.9643,3567.1,3567.0,2.80347631]
[1754302932668,0.4896,3567.1,3567.0,2.80347631]
[1754302932973,0.4896,3567.1,3566.9,0.14]
[1754302932974,0.9643,3567.1,3566.9,0.14]
[1754302933169,0.9643,3567.0,3566.9,3.14]
[1754302933372,0.9643,3567.0,3566.9,0.14]
[1754302933539,0.9643,3567.0,3566.8,2.94362985]
[1754302933735,0.14,3567.3,3566.8,0.14]
[1754302933935,0.9643,3566.9,3566.8,0.14]
[1754302935270,0.9643,3566.9,3566.8,2.9436335]
[1754302935477,0.9643,3566.9,3566.8,0.14]
[1754302936464,0.9643,3566.9,3566.8,2.9436335]
[1754302936760,0.4896,3567.2,3566.9,2.8035549]
[1754302937080,0.9643,3567.1,3566.8,2.94360826]
[1754302937242,4.249,3567.2,3566.9,2.8035549]
[1754302937243,0.4896,3567.0,3566.9,2.8035549]
[1754302937440,4.7386,3567.2,3566.9,2.8035549]
[1754302937638,0.4896,3567.3,3567.0,0.14]
[1754302937853,4.249,3567.2,3567.1,2.8033446]
[1754302938434,4.249,3567.3,3567.2,2.80326675]
[1754302938660,0.14,3567.7,3567.0,3.14]
[1754302938823,0.14,3567.7,3567.3,2.80317863]
[1754302938824,4.249,3567.6,3567.3,2.80317863]
[1754302938996,0.14,3567.7,3567.6,2.80300482]
[1754302939329,5.2133,3567.7,3567.6,2.80300482]
[1754302939696,5.2133,3567.7,3567.5,2.94305324]
[1754302939899,0.4896,3567.6,3567.5,2.94305324]
[1754302940133,0.9643,3567.6,3567.5,2.94305324]
[1754302940719,0.9643,3567.6,3567.5,2.94308339]
[1754302941318,0.4747,3567.8,3567.6,2.80298394]
[1754302941521,5.2143,3567.7,3567.5,2.94305162]
[1754302941713,4.249,3567.6,3567.5,0.14]
[1754302941919,5.2133,3567.6,3567.5,2.94308339]
[1754302942128,0.9643,3567.6,3567.5,2.94308339]
[1754302942308,5.2133,3567.6,3567.5,2.94308339]
[1754302942719,5.2133,3567.6,3567.5,0.14]
[1754302943366,5.2133,3567.6,3566.9,11.63417778]
[1754302943641,0.9643,3567.5,3567.3,0.14]
[1754302944021,0.9643,3567.4,3567.0,2.80347338]
[1754302944334,0.9643,3567.3,3567.1,0.14]
[1754302944539,0.03503854,3567.5,3567.1,0.14]
[1754302944843,0.9643,3567.2,3567.1,0.14]
[1754302946517,0.9643,3567.2,3567.1,5.94339771]
[1754302946723,0.4896,3567.4,3567.2,3.0]
[1754302946922,0.4896,3567.4,3567.1,3.14]
[1754302947123,0.4578,3567.3,3567.1,3.14]
[1754302947746,0.4578,3567.3,3567.2,2.80331394]
[1754302947949,0.9133,3567.3,3567.1,0.14]
[1754302948242,0.9133,3567.2,3567.1,0.14]
[1754302948557,0.9133,3567.2,3566.8,0.844459]
[1754302948856,5.19734247,3567.1,3566.8,0.002]
[1754302949035,0.5687777,3567.0,3566.8,0.002]
[1754302949235,0.14,3566.9,3566.8,0.002]
[1754302949625,1.0533,3566.9,3566.8,0.002]
[1754302950330,3.8568549,3566.9,3566.8,0.002]
[1754302951873,4.4068549,3566.9,3566.8,0.002]
[1754302952171,7.27510197,3566.9,3566.8,0.002]
[1754302952532,10.27510197,3566.9,3566.8,0.002]
[1754302956644,17.32510197,3566.9,3566.8,0.002]
[1754302957652,16.41180197,3566.9,3566.8,0.002]
[1754302957855,17.32510197,3566.9,3566.8,0.002]
[1754302958055,16.77510197,3566.9,3566.8,0.002]
[1754302958380,21.02610197,3566.9,3566.8,0.002]
[1754302958573,21.57610197,3566.9,3566.8,0.002]
[1754302960298,15.22354707,3566.9,3566.8,0.002]
[1754302960456,11.442,3566.9,3566.8,0.002]
[1754302962647,4.392,3566.9,3566.8,0.002]
[1754302966579,4.8498,3566.9,3566.8,0.002]
[1754302966781,0.14,3566.9,3566.8,0.002]
[1754302966973,4.391,3566.9,3566.8,0.4553]
[1754302967168,4.391,3566.9,3566.8,0.002]
[1754302969850,4.25,3566.9,3566.8,0.8928]
[1754302970066,4.25,3566.9,3566.8,0.002]
[1754302972175,6.876,3567.1,3566.8,0.4553]
[1754302972374,4.252,3567.0,3566.8,3.6964193]
[1754302972580,6.736,3567.1,3566.9,3.69433397]
[1754302972806,6.736,3567.1,3567.0,3.69427631]
[1754302972979,10.988,3567.1,3567.0,1.0308]
[1754302973160,10.988,3567.1,3567.0,3.83427631]
[1754302973690,10.988,3567.1,3567.0,1.0308]
[1754302973858,10.988,3567.1,3566.8,0.4553]
[1754302974053,10.988,3567.1,3566.9,0.4533]
[1754302974285,10.988,3567.1,3566.9,0.4375]
[1754302974558,10.988,3567.1,3567.0,0.4533]
[1754302977501,10.988,3567.1,3567.0,0.9271]
[1754302980258,10.988,3567.1,3567.0,0.4533]
[1754302980992,4.252,3567.1,3567.0,0.4533]
[1754302981458,4.252,3567.1,3566.8,0.6158]
[1754302981663,4.252,3567.1,3566.8,0.6036]
[1754302981863,4.252,3567.1,3566.8,0.142]
[1754302981864,0.4765,3567.0,3566.8,0.142]
[1754302982099,4.25,3566.9,3566.8,0.142]
[1754302982303,5.1708,3566.9,3566.8,0.002]
[1754302982478,5.20584443,3566.9,3566.8,0.002]
[1754302983194,4.25,3566.9,3566.8,0.002]
[1754302983395,4.251,3566.9,3566.8,0.002]
[1754302986119,4.7275,3566.9,3566.8,0.002]
[1754302986851,5.1718,3566.9,3566.8,0.002]
[1754302987440,5.3118,3566.9,3566.8,0.002]
[1754302988743,4.8665,3566.9,3566.8,0.002]
[1754302991412,5.3108,3566.9,3566.8,0.002]
[1754302993411,6.1223209,3566.9,3566.8,0.002]
[1754302997172,8.9258758,3566.9,3566.8,0.002]
[1754302997464,9.4758758,3566.9,3566.8,0.002]
[1754302997877,8.9258758,3566.9,3566.8,0.002]
[1754302998219,9.4758758,3566.9,3566.8,0.002]
[1754302999343,6.1223209,3566.9,3566.8,0.002]
[1754302999737,0.14,3566.9,3566.8,0.002]
[1754303000165,4.39,3566.9,3566.8,0.002]
[1754303000366,0.14,3566.9,3566.8,0.002]
[1754303000784,4.39,3566.9,3566.8,0.002]
[1754303002739,0.14,3566.9,3566.8,0.002]
[1754303002970,4.39,3566.9,3566.8,0.4636]
[1754303003145,4.39,3566.9,3566.8,0.002]
[1754303004244,0.4453,3567.2,3566.8,0.4636]
[1754303004245,0.001,3567.2,3566.8,0.4636]
[1754303004444,0.14,3567.0,3566.8,0.002]
[1754303004653,4.25,3566.9,3566.8,0.4636]
[1754303005157,4.25,3566.9,3566.8,0.9374]
[1754303005460,0.141,3567.2,3566.9,2.80351469]
[1754303005796,0.141,3567.2,3566.9,0.9354]
[1754303005999,4.25,3567.1,3566.9,0.9354]
[1754303006198,4.25,3567.1,3566.8,0.002]
[1754303006400,0.4765,3567.0,3566.8,0.002]
[1754303006601,4.25,3566.9,3566.8,0.002]
[1754303007289,4.28504443,3566.9,3566.8,0.002]
[1754303007511,5.71382444,3566.9,3566.8,0.002]
[1754303009107,0.52262444,3566.9,3566.8,0.002]
[1754303009325,0.14,3567.0,3566.8,0.002]
[1754303009655,4.25,3566.9,3566.8,0.002]
[1754303009872,5.22624443,3566.9,3566.8,0.002]
[1754303010293,5.1912,3566.9,3566.8,0.002]
[1754303011003,4.25,3566.9,3566.8,0.002]
[1754303012497,5.26072,3566.9,3566.8,0.002]
[1754303012709,5.72442,3566.9,3566.8,0.002]
[1754303013200,0.14,3567.0,3566.8,0.002]
[1754303013362,4.25,3566.9,3566.8,0.002]
[1754303013617,0.14,3567.0,3566.8,0.002]
[1754303013928,4.25,3566.9,3566.8,0.002]
[1754303014318,0.6175,3567.0,3566.8,0.002]
[1754303014522,4.25,3566.9,3566.8,0.002]
[1754303015060,1.0812,3567.0,3566.8,0.002]
[1754303015559,4.25,3566.9,3566.8,0.002]
[1754303016820,4.7275,3566.9,3566.8,0.002]
[1754303017019,5.1912,3566.9,3566.8,0.002]
[1754303017532,5.22624443,3566.9,3566.8,0.002]
[1754303018453,5.1912,3566.9,3566.8,0.002]
[1754303019718,4.7275,3566.9,3566.8,0.002]
[1754303019924,4.25,3566.9,3566.8,0.002]
[1754303020329,0.14,3567.0,3566.8,0.002]
[1754303020531,0.14,3567.1,3566.8,12.55837778]
[1754303020731,4.25,3567.0,3566.9,0.9222]
[1754303021118,0.001,3567.2,3566.9,0.9222]
[1754303021324,0.001,3567.2,3566.9,0.14]
[1754303021523,4.25,3567.1,3567.0,2.8034177]
[1754303021944,4.25,3567.1,3567.0,3.7256177]
[1754303023155,4.25,3567.1,3567.0,0.9222]
[1754303023456,6.28918026,3567.5,3567.1,2.80333808]
[1754303023659,4.25,3567.4,3567.1,2.80333808]
[1754303023855,4.25,3567.4,3567.2,0.9222]
[1754303024459,4.25,3567.4,3567.0,2.94346223]
[1754303024654,4.25,3567.4,3567.1,0.4554]
[1754303025755,0.4775,3567.3,3567.0,0.14]
[1754303025946,4.28504148,3567.2,3566.9,0.14]
[1754303026140,5.22624148,3567.2,3566.9,0.14]
[1754303026356,0.9412,3567.1,3566.8,0.002]
[1754303026540,4.25,3567.0,3566.8,0.002]
[1754303026851,5.1912,3567.0,3566.8,0.002]
[1754303027056,4.7275,3567.0,3566.8,0.002]
[1754303028273,0.9412,3566.9,3566.8,0.002]
[1754303028589,0.97624443,3566.9,3566.8,0.002]
[1754303028732,0.9412,3566.9,3566.8,0.002]
[1754303029359,0.4775,3566.9,3566.8,0.002]
[1754303030967,0.9412,3566.9,3566.8,0.002]
[1754303031333,1.0812,3566.9,3566.8,0.002]
[1754303031735,0.14,3566.9,3566.8,0.002]
[1754303033679,4.39,3566.9,3566.8,0.002]
[1754303034175,0.14,3566.9,3566.8,0.002]
[1754303034378,4.39,3566.9,3566.8,0.002]
[1754303034948,0.14,3566.9,3566.8,0.002]
[1754303035149,4.39,3566.9,3566.8,0.002]
[1754303037678,5.3245,3566.9,3566.8,0.002]
[1754303043648,4.39,3566.9,3566.8,0.002]
[1754303043845,4.25,3566.9,3566.8,1.54724898]
[1754303044268,4.249,3566.9,3566.8,1.54724898]
[1754303044898,0.14,3567.1,3566.8,1.54724898]
[1754303045055,0.4924,3567.6,3566.9,0.9171]
[1754303045383,0.14,3567.3,3566.8,14.43974382]
[1754303045587,4.249,3567.2,3567.0,0.4757]
[1754303045886,4.249,3567.2,3567.1,0.4757]
[1754303046589,4.249,3567.2,3566.9,0.9171]
[1754303046785,4.249,3567.2,3566.9,0.4414]
[1754303047089,4.249,3567.2,3567.0,0.4757]
[1754303048088,4.249,3567.2,3566.8,14.91547581]
[1754303048389,4.249,3567.2,3566.9,0.4757]
[1754303050989,0.14,3567.3,3566.9,0.4757]
[1754303051303,0.001,3567.6,3567.1,5.94339771]
[1754303051304,4.249,3567.2,3567.1,5.94339771]
[1754303051587,4.249,3567.2,3567.1,6.86049771]
[1754303051791,0.141,3567.6,3567.1,0.6157]
[1754303051972,4.249,3567.5,3567.3,14.43741586]
[1754303052173,4.249,3567.4,3567.3,14.87881586]
[1754303052392,4.249,3567.4,3567.3,12.07557778]
[1754303052578,4.249,3567.4,3567.3,15.01880997]
[1754303052770,4.249,3567.4,3567.3,15.49450997]
[1754303055788,4.249,3567.4,3567.3,11.77417778]
[1754303056217,4.249,3567.4,3567.3,14.57741832]
[1754303057220,4.249,3567.4,3567.3,11.77417778]
[1754303058001,4.249,3567.4,3567.3,14.57741832]
[1754303058566,4.249,3567.4,3567.3,0.14]
[1754303058768,5.1835,3567.4,3567.3,0.14]
[1754303059891,4.249,3567.4,3567.3,2.94324054]
[1754303060467,4.249,3567.4,3567.3,0.14]
[1754303061198,4.249,3567.4,3567.3,2.94324054]
[1754303063771,4.249,3567.4,3567.3,3.41894054]
[1754303064100,4.249,3567.4,3567.3,2.94324054]
[1754303064604,0.001,3567.6,3567.3,0.14]
[1754303064773,0.001,3567.6,3567.5,17.43726117]
[1754303064975,4.249,3567.6,3567.5,17.57726117]
[1754303066401,0.001,3567.6,3567.5,17.57726117]
[1754303066600,4.249,3567.6,3567.5,18.49436117]
[1754303066800,0.001,3567.6,3567.5,18.49436117]
[1754303067007,4.249,3567.6,3567.5,18.49436117]
[1754303068000,4.249,3567.6,3567.5,18.05296117]
[1754303068194,4.249,3567.6,3567.5,17.57726117]
[1754303069402,4.249,3567.6,3567.5,18.05536117]
[1754303069603,4.249,3567.6,3567.5,17.57726117]
[1754303069811,4.249,3567.6,3567.5,18.05536117]
[1754303070504,0.001,3567.6,3567.5,18.05536117]
[1754303070808,4.249,3567.6,3567.5,18.49786117]
[1754303071182,0.001,3567.6,3567.5,18.05536117]
[1754303071384,4.249,3567.6,3567.5,18.49786117]
[1754303073910,0.001,3567.6,3567.5,18.49786117]
[1754303074614,0.001,3567.6,3567.5,22.74586117]
[1754303076932,0.001,3567.8,3567.7,2.80292625]
[1754303077211,0.001,3567.8,3567.7,5.80292625]
[1754303077392,0.001,3567.8,3567.7,6.86352625]
[1754303078194,0.9487,3568.9,3568.8,2.80206231]
[1754303078415,5.1957,3568.9,3568.8,17.43624009]
[1754303078610,5.1957,3568.9,3568.8,17.57624009]
[1754303079113,5.1957,3568.9,3568.8,17.78260756]
[1754303079613,5.1957,3568.9,3568.8,6.14842978]
[1754303080014,5.1957,3568.9,3568.8,6.00842978]
[1754303080196,5.1957,3568.9,3568.8,3.20636747]
[1754303082497,3.0,3570.7,3569.0,2.80190529]
[1754303082699,0.11099443,3571.1,3571.0,2.80033604]
[1754303083317,0.11099443,3571.1,3571.0,3.00613483]
[1754303083721,1.05969443,3571.1,3571.0,0.20579879]